Cogmind - Beta 11 @@@ ROGUE MODE // 2022.04.19 @ 13:44:04 // Winter2019/RPGLIKE Player: Rainynight Result: Destroyed by G-47 Trooper with Particle Gun Performance ------------- Evolutions (2) 1000 Regions Visited (5) 1000 Robots Destroyed (87) 435 Value Destroyed (1985) 1985 Prototype IDs (2) 40 Alien Tech Used (0) 0 Bonus (276) 276 TOTAL SCORE: 4736 Bonus ------- High Alert Combat Kills 276 Cogmind --------- Core Integrity 0/1250 Matter 188/400 Energy 144/150 System Corruption 0% Temperature Cool (9) Movement Rolling (80) Location -8/Materials Parts ------- > --- POWER (1) -------- Light Angular Momentum Engine > --- PROPULSION (5) --- Wheel Wheel Wheel Wheel > --- UTILITY (3) ------ Terrain Scanner Advanced Targeting Computer High-powered Tractor Beam > --- WEAPON (4) ------- Assault Rifle Heavy Assault Rifle Autogun Assault Cannon > --- INVENTORY (3) ---- Assault Rifle Light Assault Rifle Katana Peak State ------------ > --- POWER ------------ Light Angular Momentum Engine > --- PROPULSION ------- Wheel Wheel Wheel Wheel > --- UTILITY ---------- Cooling System Terrain Scanner Reflective Plating > --- WEAPON ----------- Assault Rifle Heavy Assault Rifle Autogun Assault Cannon > --- INVENTORY -------- Assault Rifle Light Assault Rifle Katana [Rating: 23] Favorites ----------- Power Ion Engine Engine Ion Engine Propulsion Wheel Wheel Wheel Utility Cooling System Device Cooling System Processor Advanced Targeting Computer Hackware Hacking Suite Protection Insulated Plating Weapon Light Assault Rifle Energy Gun Small Laser Ballistic Gun Light Assault Rifle Ballistic Cannon Improved Light Cannon Build | -11 -10 -10 -9 -9 -8 ------- Run | Scr Mat Min Mat Min Mat Slots Evolved 9 | 3 . 1 1 3 1 Power . | . . . . . . Propulsion 4 | 1 . . . 2 1 Utility 2 | 1 . . . 1 . Weapon 3 | 1 . 1 1 . . Parts Attached 49 | 3 8 1 16 12 9 Power 5 | . 1 . 2 1 1 Engine 5 | . 1 . 2 1 1 Core . | . . . . . . Reactor . | . . . . . . Propulsion 6 | 2 . . . 4 . Treads . | . . . . . . Leg . | . . . . . . Wheel 6 | 2 . . . 4 . Hover . | . . . . . . Flight . | . . . . . . Utility 10 | . 2 . 4 1 3 Device 5 | . 1 . 2 1 1 Storage . | . . . . . . Processor 1 | . . . . . 1 Hackware 1 | . 1 . . . . Protection 3 | . . . 2 . 1 Artifact . | . . . . . . Weapon 28 | 1 5 1 10 6 5 Energy Gun 1 | 1 . . . . . Energy Cannon . | . . . . . . Ballistic Gun 20 | . 3 1 6 6 4 Ballistic Cannon 7 | . 2 . 4 . 1 Launcher . | . . . . . . Special Weapon . | . . . . . . Impact Weapon . | . . . . . . Slashing Weapon . | . . . . . . Piercing Weapon . | . . . . . . Special Melee Weapon . | . . . . . . Unidentified Prototypes . | . . . . . . Parts Lost 2 | . . . 1 1 . Power 1 | . . . 1 . . Propulsion . | . . . . . . Utility 1 | . . . . 1 . Weapon . | . . . . . . Highest Loss Streak 1 | . . . 1 1 . To Critical Strikes . | . . . . . . Average Slot Usage (%) 90 | . 74 100 96 88 94 Engine 10 | . 14 12 9 9 7 Wheel 24 | . 28 25 22 23 31 Device 12 | . . 12 11 17 15 Hackware 1 | . 3 12 1 . . Protection 4 | . . . 9 . 4 Ballistic Gun 23 | . 19 12 11 37 28 Ballistic Cannon 13 | . 4 25 30 . 3 Naked Turns . | . . . . . . Heaviest Build 29 | 6 11 12 27 12 29 Greatest Support 45 | 20 20 20 25 45 45 Greatest Overweight (x) 1 | 1 . . 1 . . Average Overweight (x) . | . . . . . . Largest Inventory Capacity 3 | 3 3 3 3 3 3 Average Capacity 3 | 3 3 3 3 3 3 Most Carried 3 | 1 3 3 3 3 3 Average Carried 2 | 1 2 2 2 2 3 Final Capacity 3 | 3 3 3 3 3 3 Final Carried 3 | 1 3 2 3 3 3 Class Distribution -------------------- 27% | Tank 24% | Scavenger-Skirmisher 16% | Mutant 15% | Gunner 11% | Skirmisher 4% | Scavenger-Gunner Dominant Class ---------------- Mutant | -10/Materials Gunner | -10/Mines Tank | -9/Materials Scavenger-Skirmisher | -9/Mines Scavenger-Skirmisher | -8/Materials Resources | -11 -10 -10 -9 -9 -8 ----------- Run | Scr Mat Min Mat Min Mat Matter Collected 1862 | 200 142 111 816 389 204 Remotely 48 | . . . . . 48 Salvage Created 2164 | . 256 93 758 653 404 Parts 159 | . 19 4 50 62 24 Haulers Intercepted 1 | . . . 1 . . Recyclers Shooed 3 | . . 2 . 1 . Parts Field Recycled . | . . . . . . Retrieved Matter . | . . . . . . Parts Self-Destructed . | . . . . . . Prevented . | . . . . . . Kills | -11 -10 -10 -9 -9 -8 ------- Run | Scr Mat Min Mat Min Mat Combat Hostiles Destroyed 66 | . 11 2 22 23 8 Guns 47 | . 11 . 6 23 7 Cannons 18 | . . 2 15 . 1 AOE 1 | . . . 1 . . Classes Destroyed 12 | . 3 . 7 . 2 Worker 9 | . . . 3 5 1 Builder 4 | . . . 3 1 . Hauler 1 | . . . 1 . . Recycler 4 | . 1 . 3 . . Operator 1 | . . . 1 . . Watcher 2 | . . . 1 . 1 Swarmer 29 | . 9 . 4 16 . Grunt 24 | . 2 2 10 7 3 Duelist 3 | . . . 3 . . Sentry 8 | . . . 5 . 3 Hunter 1 | . . . . . 1 Heavy 1 | . . . . . 1 Best Kill Streak 11 | . 5 2 11 6 7 Combat Bots Only 8 | . 5 2 8 6 6 Max Kills in Single Turn 4 | . 1 1 4 2 1 Gunslinging 1 | . . . . 1 . Exploded 1 | . . . 1 . . Melee . | . . . . . . Uniques/NPCs Destroyed . | . . . . . . Combat | -11 -10 -10 -9 -9 -8 -------- Run | Scr Mat Min Mat Min Mat Damage Taken 3116 | . 195 53 1494 346 1028 Core 2350 | . 155 42 1109 275 769 Absorbed by Shields . | . . . . . . Redirected to Core 1940 | . 120 42 865 205 708 Core Remaining (%) 72 | 100 . 81 . 36 . Volleys Fired 167 | . 28 5 52 46 36 Largest 4 | . 2 3 4 4 4 Hottest 140 | . 60 90 140 80 110 Shots Fired 582 | . 56 15 183 184 144 Gun 431 | . 56 5 54 184 132 Cannon 151 | . . 10 129 . 12 Launcher . | . . . . . . Special . | . . . . . . Kinetic 578 | . 52 15 183 184 144 Thermal 4 | . 4 . . . . Explosive . | . . . . . . Electromagnetic . | . . . . . . Robot Hit Streak 21 | . 5 10 13 9 21 Robot Miss Streak 5 | . 3 2 5 3 3 Penetration Max . | . . . . . . Secondary Targets 9 | . . . . 6 3 Max Gunslinging Chain 2 | . . . . 2 1 Shots Hit Robots 355 | . 29 11 99 107 109 Core Hits 152 | . 17 4 40 57 34 Critical Kills . | . . . . . . Critical Parts Destroyed 3 | . 1 . 1 1 . Critical Strikes 6 | . 1 . 4 1 . Destroy 3 | . 1 . 1 1 . Blast 3 | . . . 3 . . Melee Attacks . | . . . . . . Impact . | . . . . . . Slashing . | . . . . . . Piercing . | . . . . . . Sneak Attacks . | . . . . . . Combat Hostiles . | . . . . . . Follow-up Attacks . | . . . . . . Damage Inflicted 5195 | . 303 160 2845 812 1075 Guns 2476 | . 303 24 484 812 853 Cannons 2042 | . . 136 1684 . 222 Explosions 676 | . . . 676 . . Melee . | . . . . . . Ramming 1 | . . . 1 . . Kinetic 4518 | . 303 160 2168 812 1075 Thermal 676 | . . . 676 . . Explosive . | . . . . . . Electromagnetic . | . . . . . . Impact . | . . . . . . Slashing . | . . . . . . Piercing . | . . . . . . Highest Corruption . | . . . . . . Average Corruption . | . . . . . . Corruption Purged . | . . . . . . Corruption Blocked . | . . . . . . Overload Shots . | . . . . . . Overflow Damage 304 | . . 2 302 . . Projectiles 16 | . . 2 14 . . Explosions 288 | . . . 288 . . Melee . | . . . . . . Knockbacks 24 | . . 4 20 . . Impact . | . . . . . . Kinetic 20 | . . 2 18 . . Secondary 4 | . . 2 2 . . Self-Inflicted Damage 152 | . . . 152 . . Shots 2 | . . . 2 . . Rammed 1 | . . . 1 . . Targets Rammed 1 | . . . 1 . . Kicked . | . . . . . . Crushed . | . . . . . . Highest Temperature 322 | . 20 153 322 . 6 Average Temperature 136 | . 17 71 174 . 3 Received Heat Transfer 948 | . 24 33 510 120 261 Effects 3 | . . . 3 . . Interference 3 | . . . 3 . . Siege Activations . | . . . . . . Robots Corrupted . | . . . . . . Combat Hostiles . | . . . . . . Parts Fried . | . . . . . . Impact Corruptions . | . . . . . . Robots Melted . | . . . . . . Combat Hostiles . | . . . . . . Parts Melted . | . . . . . . Heat Transferred 450 | . . . 450 . . Parts Sabotaged . | . . . . . . Parts Stolen . | . . . . . . Parts Stripped . | . . . . . . Power Chain Reactions . | . . . . . . Missiles Intercepted . | . . . . . . Alert | -11 -10 -10 -9 -9 -8 ------- Run | Scr Mat Min Mat Min Mat Peak Influence 721 | . 354 188 721 687 533 Initial 277 | . . 138 72 277 267 Average 410 | . 187 160 440 524 398 Maximum Alert Level 3 | . 1 . 3 2 2 Low Security (%) 23 | 100 53 100 32 . . Level 1 13 | . 46 . . 5 35 Level 2 58 | . . . 54 94 64 Level 3 4 | . . . 12 . . Level 4 . | . . . . . . Level 5 . | . . . . . . High Security . | . . . . . . Max Security . | . . . . . . Squads Dispatched 6 | . 1 . 4 . 1 Investigation . | . . . . . . Extermination . | . . . . . . Reinforcement 5 | . 1 . 3 . 1 Assault 1 | . . . 1 . . Garrison . | . . . . . . Intercept . | . . . . . . Searches Triggered . | . . . . . . Construction Impeded 1 | . . . 1 . . Haulers Reinforced . | . . . . . . Active Scanning Responses . | . . . . . . Cargo Convoy Interrupts . | . . . . . . Stealth | -11 -10 -10 -9 -9 -8 --------- Run | Scr Mat Min Mat Min Mat Distress Signals 5 | . . . 3 . 2 Communications Jammed . | . . . . . . Distress Signals . | . . . . . . Times Spotted 94 | . 20 2 36 25 11 Peak Tracking Total 9 | . 5 2 9 4 6 Tactical Retreats 7 | . 2 . 3 2 . Traps | -11 -10 -10 -9 -9 -8 ------- Run | Scr Mat Min Mat Min Mat Traps Triggered 1 | . . . 1 . . Indirectly . | . . . . . . Trap Hack Attempts . | . . . . . . Triggered . | . . . . . . Disarmed 3 | . 3 . . . . Reprogrammed 6 | . 6 . . . . Reused . | . . . . . . Traps Extracted . | . . . . . . Installed . | . . . . . . Triggered . | . . . . . . Machines | -11 -10 -10 -9 -9 -8 ---------- Run | Scr Mat Min Mat Min Mat Machines Disabled 3 | . . . 3 . . Max in Single Turn 2 | . . . 2 . . Machines Sabotaged . | . . . . . . Garrisons Compromised . | . . . . . . Overloaded Fab Kills . | . . . . . . Hacking | -11 -10 -10 -9 -9 -8 --------- Run | Scr Mat Min Mat Min Mat Machines Accessed 8 | . 5 . 3 . . Terminals 8 | . 5 . 3 . . Fabricators . | . . . . . . Repair Stations . | . . . . . . Recycling Units . | . . . . . . Scanalyzers . | . . . . . . Garrison Access . | . . . . . . Total Hacks 12 | . 8 . 4 . . Successful 7 | . 6 . 1 . . Failed 5 | . 2 . 3 . . Catastrophic . | . . . . . . Database Lockouts . | . . . . . . Manual 6 | . 2 . 4 . . Terminals 12 | . 8 . 4 . . Fabricators . | . . . . . . Repair Stations . | . . . . . . Recycling Units . | . . . . . . Scanalyzers . | . . . . . . Garrison Access . | . . . . . . Terminal Hacks 6 | . 5 . 1 . . Prototype ID Bank 1 | . 1 . . . . Unreport Threat 1 | . . . 1 . . Locate Traps 1 | . 1 . . . . Disarm Traps 1 | . 1 . . . . Reprogram Traps 1 | . 1 . . . . Recall Reinforcements 1 | . 1 . . . . Fabricator Hacks . | . . . . . . Repair Station Hacks . | . . . . . . Recycling Unit Hacks . | . . . . . . Scanalyzer . | . . . . . . Garrison Access Hacks . | . . . . . . Unauthorized Hacks 1 | . 1 . . . . Terminals 1 | . 1 . . . . Assimilate 1 | . 1 . . . . Fabricators . | . . . . . . Repair Stations . | . . . . . . Recycling Units . | . . . . . . Scanalyzers . | . . . . . . Garrison Access . | . . . . . . Data Cores Recovered 1 | . . . 1 . . Used . | . . . . . . Hacking Detections 6 | . 4 . 2 . . Full Trace Events 1 | . . . 1 . . Feedback Events . | . . . . . . Feedback Blocked . | . . . . . . Robot Schematics Acquired . | . . . . . . Robots Built . | . . . . . . Authchips . | . . . . . . Time . | . . . . . . Total Robot Build Rating . | . . . . . . Part Schematics Acquired . | . . . . . . Parts Built . | . . . . . . Authchips . | . . . . . . Time . | . . . . . . Total Part Build Rating . | . . . . . . Parts Repaired . | . . . . . . Time . | . . . . . . Parts Recycled . | . . . . . . Recycled Matter . | . . . . . . Retrieved Matter . | . . . . . . Retrieved Components . | . . . . . . Parts Scanalyzed . | . . . . . . Part Schematics Acquired . | . . . . . . Parts Damaged . | . . . . . . Bothacking | -11 -10 -10 -9 -9 -8 ------------ Run | Scr Mat Min Mat Min Mat Used RIF Installer . | . . . . . . Robots Hacked . | . . . . . . Non-combat . | . . . . . . Combat . | . . . . . . Robot Hacks Applied . | . . . . . . Relay Couplers Released . | . . . . . . Fabnet Peak Effective % . | . . . . . . Robots Rewired . | . . . . . . Allies Hacked . | . . . . . . Hacks Repelled . | . . . . . . Allies | -11 -10 -10 -9 -9 -8 -------- Run | Scr Mat Min Mat Min Mat Total Allies 1 | . 1 . . . . Largest Group 1 | . 1 . . . . Highest-Rated Group 10 | . 10 . . . . Highest-Rated Ally 10 | . 10 . . . . Total Orders . | . . . . . . Ally Attacks . | . . . . . . Total Damage . | . . . . . . Kills . | . . . . . . Allies Corrupted . | . . . . . . Allies Melted . | . . . . . . Intel | -11 -10 -10 -9 -9 -8 ------- Run | Scr Mat Min Mat Min Mat Robot Analysis Total . | . . . . . . Derelict Logs Recovered 1 | . . . . 1 . Drone Launches . | . . . . . . Drone Recoveries . | . . . . . . Exploration | -11 -10 -10 -9 -9 -8 ------------- Run | Scr Mat Min Mat Min Mat Turns Passed 1831 | 10 290 50 663 573 245 Spaces Moved 1347 | 6 224 28 467 478 144 Core 1 | 1 . . . . . Treads . | . . . . . . Legs . | . . . . . . Wheels 1346 | 5 224 28 467 478 144 Hover . | . . . . . . Flight . | . . . . . . Fastest Speed 80 | 80 80 80 80 80 80 Average Speed 82 | 83 80 80 85 80 80 Slowest Speed 100 | 100 80 80 95 80 80 Overloaded Moves . | . . . . . . Propulsion Burnouts . | . . . . . . Robots Hopped . | . . . . . . Cave-ins Triggered . | . . . . . . Exploration Rate (%) 36 | 2 48 12 56 84 17 Regions Visited 5 Branch Regions 2 Pre-discovered Areas . | . . . . . . Known Exits Taken . | . . . . . . Unknown Exits Taken 5 | 1 1 1 1 1 . Scrap Searched 1 | . . . . 1 . Spaces Dug . | . . . . . . Terrain Destroyed 59 | . . . 57 . 2 Melee . | . . . . . . Projectile 7 | . . . 5 . 2 AOE 52 | . . . 52 . . Terrain Rammed . | . . . . . . Walls Destroyed . | . . . . . . Machines Disabled . | . . . . . . Actions | -11 -10 -10 -9 -9 -8 --------- Run | Scr Mat Min Mat Min Mat Total 1746 | 9 283 45 607 592 210 Wait 86 | . 14 12 33 27 . Move 1342 | 5 223 27 466 477 144 Hop . | . . . . . . Pick Up 8 | . 1 . 5 2 . Fast Attach 30 | 3 4 . 12 7 4 Attach 4 | . 2 1 . 1 . Detach 6 | 1 2 . 3 . . Swap 15 | . 2 . 4 4 5 Drop 36 | . 3 . 15 10 8 Fire 167 | . 28 5 52 46 36 Melee . | . . . . . . Ram 1 | . . . 1 . . Kick . | . . . . . . Crush . | . . . . . . Escape Stasis . | . . . . . . Rewire . | . . . . . . Trap . | . . . . . . Miscellaneous 51 | . 4 . 16 18 13 Route ------- -11/Scrapyard -10/Materials -10/Mines -9/Materials (discovered 2 exits: [*Mat] / [*Min]) -9/Mines (discovered 2 exits: [*Mat x2]) -8/Materials History --------- Turn | Location | Event 1 | -11/Scrapyard | Upgraded with Propulsion slot (x1) 1 | -11/Scrapyard | Upgraded with Utility slot (x1) 1 | -11/Scrapyard | Upgraded with Weapon slot (x1) 2 | -11/Scrapyard | Discovered new exit (range 1) 11 | -11/Scrapyard | Entered Materials 295 | -10/Materials | Discovered new exit (range 9) 301 | -10/Materials | Entered Mines 303 | -10/Mines | Reached level 2 305 | -10/Mines | Upgraded with Weapon slot (x1) 343 | -10/Mines | Discovered new exit (range 11) 351 | -10/Mines | Entered Materials 353 | -9/Materials | Reached level 3 353 | -9/Materials | Upgraded with Weapon slot (x1) 534 | -9/Materials | Core integrity fell below 50% 568 | -9/Materials | Core integrity fell below 20% 576 | -9/Materials | Reached level 4 616 | -9/Materials | Destroyed 8 combat bots 751 | -9/Materials | First assault squad dispatched 811 | -9/Materials | Discovered new exit (range 12) 872 | -9/Materials | Build established: Tank 872 | -9/Materials | Reached level 5 941 | -9/Materials | Destroyed 8 combat bots 971 | -9/Materials | Discovered new exit (range 16) 1014 | -9/Materials | Entered Mines 1027 | -9/Mines | Upgraded with Utility slot (x1) 1031 | -9/Mines | Discovered new exit (range 15) 1032 | -9/Mines | Reached level 6 1370 | -9/Mines | Discovered new exit (range 9) 1373 | -9/Mines | Learned Materials trap positions 1442 | -9/Mines | Reached level 7 1451 | -9/Mines | Upgraded with Propulsion slot (x2) 1587 | -9/Mines | Entered Materials 1588 | -8/Materials | Loaded intel: 13 trap records 1588 | -8/Materials | Core integrity fell below 50% 1589 | -8/Materials | Reached level 8 1625 | -8/Materials | Build established: Scavenger-Skirmisher 1641 | -8/Materials | Core integrity fell below 20% 1675 | -8/Materials | Reached level 9 1695 | -8/Materials | Upgraded with Propulsion slot (x1) 1832 | -8/Materials | Destroyed by G-47 Trooper with Particle Gun Last Messages --------------- 01793_ Acquired 1 matter. 01793_ H-61 Shepherd calls for reinforcements. 01793_ ALERT: Hostile activity reported, dispatching reinforcements to area. 01793_ Knocked back. 01794_ Acquired 4 matter. 01795_ K-01 Serf collects debris. 01795_ Knocked back. 01796_ Acquired 4 matter. 01800_ K-01 Serf collects debris. 01802_ Acquired 3 matter. 01803_ Knocked back. 01804_ Acquired 4 matter. 01805_ H-61 Shepherd destroyed. 01815_ Y-45 Defender destroyed. 01820_ W-25 Informer sends out distress signal. 01821_ Acquired 3 matter. 01825_ W-25 Informer destroyed. 01826_ Acquired 20 matter. 01826_ Acquired 3 matter. Map ----- +----------------------------------------------------+ | ??????????????? ?? ? ##### !/! ##### ?###??? | | ??????????????? #??## !/ ##### ####### | | ?????????????? ? ?#?### #####??#####? | | ?????????????????# ##### ! ####? ####### | | ?????????????????#? ?#######+######? ###?### | | ????????????????## #?#??### ####?######???? | | ????????????????## ##??#### ### ] ##? | | ????????????????#? ?######## #?# ##? | | ????????????????## ######## ### """ """ ### | | ????????????????## # """ """ ??# | | ?????????????????# + """ ""? ??? | | ?????????????????# ### # #?# | | ?????????????????# ?## ###### # ! ""T"" #? | | ?????????????????? ??# ###### # """""???? | | ?????????????????# ### ###### ########?#?## | | ????????????????##+### ######%########?##?? | | ??????????????? ?? # ######%###########?? | | ????????????????? ? # ######%##########??# | | ??????????????? # ###### ############? | | ?????????????## ?? + ## ! ########?? | | ?????????????#? ? # ## #########? | | ???????????? ?? ? # ## ####?####? | | ???????????? ?######## ## !#?###?#?#? | | ?????????? ####### # #########? | | ?????????? r u!# ##?######? | | ???????????T =@= ########?# | | ?????????? = !# #########? | | ?????????? ####### ] * # #########? | | ????????????########## ;#################?? | | ????????????#??######; ###############??#?? | | ??????????????#?###?## # ###############?? | | ??????????????#??? ? + ?######?####????? | | ??????????????# ?""^#%gg## ###############?? | | ??????????????? ? Y" # ###??############??? | | ????????????????? ?" # ############?#?????? | | ???????????????? ? ?# ###?#########?#????? | | ?????????????????? ?# ## ####?#?????? | | ??????????????????#### ## T #??##??????? | | ?????????????????????# ## ??#?????????? | | ?????????????????????# ???? ??????????????? | | ??????????????????????? ??? ????????????????? | | ????????????????????????????????????????????? | | ????????????????????????????????????????????? | | ????????????????????????????????????????????? | | ????????????????????????????????????????????? | | ????????????????????????????????????????????? | | ????????????????????????????????????????????? | | ????????????????????????????????????????????? | | ????????????????????????????????????????????? | | ????????????????????????????????????????????? | +----------------------------------------------------+ Best States ------------- Heat Dissipation 71 Coolant Potential 50 Energy Generation 23 Energy Capacity 265 Matter Stores 350 Matter Capacity 400 Sight Range 16 Terrain Scan Range 14 Terrain Scan Density 610 Armor Coverage 150 Resistance: KI 20 Resistance: TH 10 Resistance: EM 15 Evasion (%) 44 Targeting Accuracy 8 Offensive Hacking 10 Trap Extractor Capacity 4 Item Schematics ----------------- None Robot Schematics ------------------ None Fabricated ------------ Nothing Alien Tech Used ----------------- None Achievements -------------- None Challenges ------------ None RPGLIKE | -11 -10 -10 -9 -9 -8 --------- Run | Scr Mat Min Mat Min Mat Levels Raised 8 | . . 1 3 2 2 XP Earned 15461 | 3000 1250 750 4616 3192 2653 XP Spent 14850 | 3000 . 1350 3125 4450 2925 Upgrades 45 | 6 . 3 20 12 4 Propulsion Slot 4 | 1 . . . 2 1 Utility Slot 2 | 1 . . . 1 . Weapon Slot 3 | 1 . 1 1 . . Core Integrity 13 | . . . 13 . . Heat Dissipation 4 | . . . 4 . . Energy Generation 1 | . . . . 1 . Matter Storage 2 | . . . . 1 1 Mass Support 1 | . . . 1 . . Inventory Capacity 3 | 3 . . . . . Terrain Scan Density 6 | . . . . 6 . Ranged Accuracy 2 | . . 1 1 . . KI Resistance % 4 | . . 1 . 1 2 Protomatter Created 569 | . 78 . 204 154 133 Integrity Restored 1092 | . 87 . 327 378 300 Core 1092 | . 87 . 327 378 300 Protomatter Decayed 144 | . 49 . 67 28 . Game ------ Seed ShrapnelColdEdition Manual? 0 Play Time 00:23:17 Cumulative 93.2 hours Start 2022.04.19 @ 13:21:34 End 2022.04.19 @ 13:44:04 Sessions 1 Manual Loads 0 Difficulty Rogue Special Mode Winter2019/RPGLIKE Game No. 114 Rogue 114 Adventurer 0 Explorer 0 Win Type - Total 4 Types 4/0/0/0/0/0/0/0/0 Lore% 52 Gallery% 58 Achievement% 44 Wizard Run 0 Options --------- ASCII 1 Keyboard 1 Movement Numpad Keybinds 0 Fullscreen 1 Font 18/X11 Map View 76x50 Tactical HUD 1 Map Filters NONE Filters NONE Steam 1 RUN: 18ed01af-1ee6-4461-aa0e-11a91dbafc32